[Event "Titled Tuesday Blitz October 31 Early 2023"]
[White "Perez Cruz, Adianet"]
[Black "Buscar, Michael"]
[WhiteFideId "3510115"]
[BlackFideId "2603616"]
[WhiteElo "1957"]
[BlackElo "2322"]
[Result "0-1"]
[Round "7"]
[TimeControl "180+1"]
[Date "2023.10.31"]
[WhiteClock "0:01:18"]
[BlackClock "0:00:05"]
[Board "138"]

1. d4 {[%clk 0:03:00]}  d5 {[%clk 0:01:02]} 2. Nf3 {[%clk 0:02:57]}  Nf6 {[%clk 0:01:02]} 3. Bf4 {[%clk 0:02:57]}  e6 {[%clk 0:01:03]} 4. e3 {[%clk 0:02:57]}  c5 {[%clk 0:01:04]} 5. c3 {[%clk 0:02:57]}  Nc6 {[%clk 0:01:04]} 6. Nbd2 {[%clk 0:02:57]}  Be7 {[%clk 0:01:04]} 7. Ne5 {[%clk 0:02:57]}  O-O {[%clk 0:01:05]} 8. Bd3 {[%clk 0:02:56]}  Nxe5 {[%clk 0:01:05]} 9. Bxe5 {[%clk 0:02:56]}  Nd7 {[%clk 0:01:04]} 10. Bg3 {[%clk 0:02:56]}  f5 {[%clk 0:01:03]} 11. Nf3 {[%clk 0:02:55]}  c4 {[%clk 0:01:02]} 12. Bc2 {[%clk 0:02:55]}  g5 {[%clk 0:01:00]} 13. Ne5 {[%clk 0:02:49]}  Nxe5 {[%clk 0:01:00]} 14. Bxe5 {[%clk 0:02:48]}  Bd6 {[%clk 0:01:00]} 15. f4 {[%clk 0:02:43]}  Bxe5 {[%clk 0:00:59]} 16. fxe5 {[%clk 0:02:41]}  Qe8 {[%clk 0:00:53]} 17. Qf3 {[%clk 0:02:37]}  Bd7 {[%clk 0:00:48]} 18. O-O {[%clk 0:02:37]}  b5 {[%clk 0:00:37]} 19. a3 {[%clk 0:02:35]}  a5 {[%clk 0:00:37]} 20. h3 {[%clk 0:02:33]}  Qe7 {[%clk 0:00:32]} 21. Qe2 {[%clk 0:02:24]}  Be8 {[%clk 0:00:32]} 22. Rf2 {[%clk 0:02:23]}  h5 {[%clk 0:00:31]} 23. Raf1 {[%clk 0:02:22]}  g4 {[%clk 0:00:32]} 24. hxg4 {[%clk 0:02:21]}  hxg4 {[%clk 0:00:31]} 25. g3 {[%clk 0:02:20]}  Qg5 {[%clk 0:00:31]} 26. Rh2 {[%clk 0:02:19]}  Ra7 {[%clk 0:00:31]} 27. Kg2 {[%clk 0:02:18]}  Rff7 {[%clk 0:00:27]} 28. Rfh1 {[%clk 0:02:18]}  Rh7 {[%clk 0:00:28]} 29. Rxh7 {[%clk 0:02:17]}  Rxh7 {[%clk 0:00:29]} 30. Rxh7 {[%clk 0:02:16]}  Kxh7 {[%clk 0:00:29]} 31. Kf2 {[%clk 0:02:14]}  Qh6 {[%clk 0:00:28]} 32. Qf1 {[%clk 0:02:14]}  Kg7 {[%clk 0:00:11]} 33. Qg2 {[%clk 0:02:14]}  Kf8 {[%clk 0:00:11]} 34. Ke2 {[%clk 0:02:14]}  Ke7 {[%clk 0:00:11]} 35. Kd2 {[%clk 0:02:13]}  Kd7 {[%clk 0:00:11]} 36. Ke2 {[%clk 0:02:13]}  Kc6 {[%clk 0:00:11]} 37. Bd1 {[%clk 0:02:13]}  Kb6 {[%clk 0:00:11]} 38. Kd2 {[%clk 0:02:13]}  b4 {[%clk 0:00:11]} 39. axb4 {[%clk 0:02:12]}  axb4 {[%clk 0:00:12]} 40. cxb4 {[%clk 0:02:13]}  Kb5 {[%clk 0:00:12]} 41. Qe2 {[%clk 0:02:01]}  Qh3 {[%clk 0:00:11]} 42. Qf2 {[%clk 0:02:01]}  Qh1 {[%clk 0:00:11]} 43. Kc2 {[%clk 0:02:00]}  Qe4+ {[%clk 0:00:11]} 44. Kc1 {[%clk 0:01:59]}  Kxb4 {[%clk 0:00:12]} 45. Bc2 {[%clk 0:01:59]}  Qh1+ {[%clk 0:00:11]} 46. Bd1 {[%clk 0:01:59]}  Ba4 {[%clk 0:00:11]} 47. Qd2+ {[%clk 0:01:59]}  Kb5 {[%clk 0:00:10]} 48. Qe2 {[%clk 0:01:54]}  Qg1 {[%clk 0:00:10]} 49. Kd2 {[%clk 0:01:52]}  Bxd1 {[%clk 0:00:10]} 50. Qxd1 {[%clk 0:01:52]}  Qxg3 {[%clk 0:00:10]} 51. Qe2 {[%clk 0:01:50]}  Qh3 {[%clk 0:00:09]} 52. b3 {[%clk 0:01:50]}  Qf3 {[%clk 0:00:08]} 53. bxc4+ {[%clk 0:01:51]}  dxc4 {[%clk 0:00:09]} 54. Qe1 {[%clk 0:01:48]}  Qg2+ {[%clk 0:00:08]} 55. Kc3 {[%clk 0:01:47]}  Qa2 {[%clk 0:00:08]} 56. Qg3 {[%clk 0:01:32]}  Qb3+ {[%clk 0:00:07]} 57. Kd2 {[%clk 0:01:33]}  Qd3+ {[%clk 0:00:07]} 58. Kc1 {[%clk 0:01:33]}  c3 {[%clk 0:00:07]} 59. Qf2 {[%clk 0:01:29]}  g3 {[%clk 0:00:05]} 60. Qg2 {[%clk 0:01:18]}  Qd2+ {[%clk 0:00:05]} 0-1


[Site "https://www.chess.com"]

[Event "Titled Tuesday Blitz October 31 Early 2023"]
[White "Garrido Dominguez, Jesus"]
[Black "ivana_999"]
[WhiteFideId "2254174"]
[WhiteElo "2610"]
[BlackElo "2041"]
[Result "1-0"]
[Round "7"]
[TimeControl "180+1"]
[Date "2023.10.31"]
[WhiteClock "0:01:31"]
[BlackClock "0:00:48"]
[Board "139"]

1. e4 {[%clk 0:03:00]}  e6 {[%clk 0:03:00]} 2. d4 {[%clk 0:03:00]}  d5 {[%clk 0:03:00]} 3. Nd2 {[%clk 0:03:01]}  Nf6 {[%clk 0:03:00]} 4. e5 {[%clk 0:03:01]}  Nfd7 {[%clk 0:03:01]} 5. Bd3 {[%clk 0:03:01]}  c5 {[%clk 0:03:01]} 6. c3 {[%clk 0:03:02]}  Nc6 {[%clk 0:03:01]} 7. Ne2 {[%clk 0:03:02]}  cxd4 {[%clk 0:03:02]} 8. cxd4 {[%clk 0:03:02]}  f6 {[%clk 0:03:02]} 9. exf6 {[%clk 0:03:01]}  Nxf6 {[%clk 0:03:02]} 10. Nf3 {[%clk 0:03:02]}  Bd6 {[%clk 0:03:01]} 11. O-O {[%clk 0:03:03]}  Qc7 {[%clk 0:03:01]} 12. Bg5 {[%clk 0:03:02]}  O-O {[%clk 0:03:01]} 13. Bh4 {[%clk 0:03:03]}  Bd7 {[%clk 0:02:59]} 14. Rc1 {[%clk 0:03:01]}  Nh5 {[%clk 0:02:56]} 15. Bg3 {[%clk 0:03:00]}  Nxg3 {[%clk 0:02:56]} 16. hxg3 {[%clk 0:03:01]}  a6 {[%clk 0:02:55]} 17. Qd2 {[%clk 0:03:01]}  Rae8 {[%clk 0:02:50]} 18. Nf4 {[%clk 0:03:01]}  Bxf4 {[%clk 0:02:50]} 19. gxf4 {[%clk 0:02:59]}  Qxf4 {[%clk 0:02:45]} 20. Qe3 {[%clk 0:02:57]}  Rf6 {[%clk 0:02:42]} 21. Ne5 {[%clk 0:02:45]}  Nxe5 {[%clk 0:02:11]} 22. Qxe5 {[%clk 0:02:36]}  Bc6 {[%clk 0:02:06]} 23. g3 {[%clk 0:02:24]}  Qf3 {[%clk 0:01:59]} 24. Be2 {[%clk 0:02:18]}  Qf5 {[%clk 0:01:47]} 25. Qxf5 {[%clk 0:01:56]}  exf5 {[%clk 0:01:48]} 26. Bd3 {[%clk 0:01:54]}  g6 {[%clk 0:01:45]} 27. Kg2 {[%clk 0:01:53]}  Kf7 {[%clk 0:01:44]} 28. Rh1 {[%clk 0:01:53]}  Kg7 {[%clk 0:01:44]} 29. a3 {[%clk 0:01:52]}  Rfe6 {[%clk 0:01:38]} 30. Rhd1 {[%clk 0:01:49]}  R6e7 {[%clk 0:01:36]} 31. Rd2 {[%clk 0:01:49]}  Re6 {[%clk 0:01:35]} 32. Rdd1 {[%clk 0:01:48]}  R6e7 {[%clk 0:01:35]} 33. Bxa6 {[%clk 0:01:47]}  Re6 {[%clk 0:01:26]} 34. Bd3 {[%clk 0:01:46]}  R6e7 {[%clk 0:01:24]} 35. b4 {[%clk 0:01:47]}  Ba4 {[%clk 0:01:21]} 36. Rd2 {[%clk 0:01:46]}  Rd8 {[%clk 0:01:07]} 37. Rc5 {[%clk 0:01:44]}  Re1 {[%clk 0:01:00]} 38. Be2 {[%clk 0:01:39]}  Ra1 {[%clk 0:00:55]} 39. Rd3 {[%clk 0:01:34]}  Bc2 {[%clk 0:00:48]} 40. Rxc2 {[%clk 0:01:31]} 1-0


[Site "https://www.chess.com"]

[Event "Titled Tuesday Blitz October 31 Early 2023"]
[White "whiteglovethief"]
[Black "Sarkar, Justin"]
[BlackFideId "2010011"]
[WhiteElo "2463"]
[BlackElo "2249"]
[Result "1-0"]
[Round "7"]
[TimeControl "180+1"]
[Date "2023.10.31"]
[WhiteClock "0:01:46"]
[BlackClock "0:00:00"]
[Board "142"]

1. d4 {[%clk 0:03:00]}  Nf6 {[%clk 0:02:40]} 2. c4 {[%clk 0:02:54]}  g6 {[%clk 0:02:35]} 3. Nc3 {[%clk 0:02:53]}  Bg7 {[%clk 0:02:35]} 4. e4 {[%clk 0:02:54]}  O-O {[%clk 0:02:32]} 5. Nf3 {[%clk 0:02:51]}  d6 {[%clk 0:02:31]} 6. Be2 {[%clk 0:02:52]}  e5 {[%clk 0:02:28]} 7. O-O {[%clk 0:02:49]}  Nbd7 {[%clk 0:02:25]} 8. Be3 {[%clk 0:02:46]}  Ng4 {[%clk 0:02:22]} 9. Bg5 {[%clk 0:02:45]}  Bf6 {[%clk 0:02:18]} 10. Bxf6 {[%clk 0:02:39]}  Ngxf6 {[%clk 0:02:14]} 11. dxe5 {[%clk 0:02:23]}  dxe5 {[%clk 0:02:12]} 12. Qc2 {[%clk 0:02:22]}  c6 {[%clk 0:02:09]} 13. Rfd1 {[%clk 0:02:19]}  Qe7 {[%clk 0:02:09]} 14. Rab1 {[%clk 0:02:17]}  a5 {[%clk 0:02:05]} 15. a3 {[%clk 0:02:16]}  Nh5 {[%clk 0:01:59]} 16. b4 {[%clk 0:02:14]}  axb4 {[%clk 0:01:52]} 17. axb4 {[%clk 0:02:12]}  Nf4 {[%clk 0:01:52]} 18. c5 {[%clk 0:02:08]}  Nf6 {[%clk 0:01:26]} 19. Nd2 {[%clk 0:02:08]}  Nxe2+ {[%clk 0:01:12]} 20. Nxe2 {[%clk 0:02:09]}  Be6 {[%clk 0:01:11]} 21. Nc4 {[%clk 0:02:07]}  Bxc4 {[%clk 0:01:04]} 22. Qxc4 {[%clk 0:02:08]}  Rfd8 {[%clk 0:01:04]} 23. f3 {[%clk 0:02:08]}  Rxd1+ {[%clk 0:01:01]} 24. Rxd1 {[%clk 0:02:07]}  Rd8 {[%clk 0:01:01]} 25. Rxd8+ {[%clk 0:02:05]}  Qxd8 {[%clk 0:01:01]} 26. Kf2 {[%clk 0:02:05]}  Qd2 {[%clk 0:01:00]} 27. Qc3 {[%clk 0:02:05]}  Qxc3 {[%clk 0:00:48]} 28. Nxc3 {[%clk 0:02:05]}  h5 {[%clk 0:00:47]} 29. Nb1 {[%clk 0:02:04]}  Kf8 {[%clk 0:00:46]} 30. Nd2 {[%clk 0:02:05]}  Nd7 {[%clk 0:00:15]} 31. Nc4 {[%clk 0:02:03]}  Ke7 {[%clk 0:00:15]} 32. Na5 {[%clk 0:02:03]}  Nb8 {[%clk 0:00:10]} 33. Nxb7 {[%clk 0:02:02]}  Na6 {[%clk 0:00:10]} 34. b5 {[%clk 0:01:49]}  cxb5 {[%clk 0:00:10]} 35. c6 {[%clk 0:01:49]}  b4 {[%clk 0:00:09]} 36. Ke3 {[%clk 0:01:49]}  f5 {[%clk 0:00:03]} 37. Kd3 {[%clk 0:01:47]}  f4 {[%clk 0:00:00]} 38. Kc4 {[%clk 0:01:46]} 1-0


[Site "https://www.chess.com"]

[Event "Titled Tuesday Blitz October 31 Early 2023"]
[White "Josgar05"]
[Black "knightinshiningarmour16"]
[WhiteElo "2341"]
[BlackElo "2166"]
[Result "1-0"]
[Round "7"]
[TimeControl "180+1"]
[Date "2023.10.31"]
[WhiteClock "0:00:16"]
[BlackClock "0:00:21"]
[Board "149"]

1. Nf3 {[%clk 0:01:48]}  d5 {[%clk 0:02:59]} 2. g3 {[%clk 0:01:49]}  Bf5 {[%clk 0:02:59]} 3. Bg2 {[%clk 0:01:50]}  e6 {[%clk 0:02:59]} 4. d3 {[%clk 0:01:50]}  Nf6 {[%clk 0:02:59]} 5. Nbd2 {[%clk 0:01:51]}  h6 {[%clk 0:03:00]} 6. O-O {[%clk 0:01:52]}  Be7 {[%clk 0:03:00]} 7. e3 {[%clk 0:01:52]}  O-O {[%clk 0:03:00]} 8. Qe2 {[%clk 0:01:52]}  Bh7 {[%clk 0:03:00]} 9. b3 {[%clk 0:01:53]}  c6 {[%clk 0:02:57]} 10. Bb2 {[%clk 0:01:52]}  a5 {[%clk 0:02:58]} 11. e4 {[%clk 0:01:53]}  dxe4 {[%clk 0:02:54]} 12. dxe4 {[%clk 0:01:54]}  Na6 {[%clk 0:02:50]} 13. a4 {[%clk 0:01:53]}  Nb4 {[%clk 0:02:49]} 14. Rac1 {[%clk 0:01:52]}  Qc7 {[%clk 0:02:42]} 15. Ne5 {[%clk 0:01:47]}  Rfd8 {[%clk 0:02:35]} 16. Rfe1 {[%clk 0:01:32]}  Nd7 {[%clk 0:02:22]} 17. Nec4 {[%clk 0:01:28]}  b5 {[%clk 0:02:08]} 18. axb5 {[%clk 0:01:24]}  cxb5 {[%clk 0:02:09]} 19. Na3 {[%clk 0:01:24]}  Rab8 {[%clk 0:01:51]} 20. Nxb5 {[%clk 0:01:24]}  Qb6 {[%clk 0:01:49]} 21. Na3 {[%clk 0:01:18]}  Bg5 {[%clk 0:01:44]} 22. Nac4 {[%clk 0:01:14]}  Qb5 {[%clk 0:01:39]} 23. f4 {[%clk 0:01:14]}  Be7 {[%clk 0:01:39]} 24. Kh1 {[%clk 0:01:13]}  Nc5 {[%clk 0:01:38]} 25. Be5 {[%clk 0:00:54]}  Rbc8 {[%clk 0:01:34]} 26. Bf3 {[%clk 0:00:49]}  Nd7 {[%clk 0:01:12]} 27. Bb2 {[%clk 0:00:47]}  Nf6 {[%clk 0:01:10]} 28. Nf1 {[%clk 0:00:32]}  Nc6 {[%clk 0:01:07]} 29. Ra1 {[%clk 0:00:29]}  Ra8 {[%clk 0:01:01]} 30. Nfd2 {[%clk 0:00:29]}  Ra7 {[%clk 0:00:57]} 31. Ne5 {[%clk 0:00:26]}  Nd4 {[%clk 0:00:53]} 32. Bxd4 {[%clk 0:00:24]}  Qxe2 {[%clk 0:00:53]} 33. Rxe2 {[%clk 0:00:24]}  Rxd4 {[%clk 0:00:53]} 34. Nc6 {[%clk 0:00:24]}  Rxd2 {[%clk 0:00:34]} 35. Rxd2 {[%clk 0:00:22]}  Rc7 {[%clk 0:00:35]} 36. Nxe7+ {[%clk 0:00:20]}  Rxe7 {[%clk 0:00:35]} 37. Rd8+ {[%clk 0:00:20]}  Ne8 {[%clk 0:00:35]} 38. Rxa5 {[%clk 0:00:21]}  f6 {[%clk 0:00:35]} 39. e5 {[%clk 0:00:19]}  Kf7 {[%clk 0:00:35]} 40. Bc6 {[%clk 0:00:18]}  Nc7 {[%clk 0:00:33]} 41. Ra7 {[%clk 0:00:19]}  Bxc2 {[%clk 0:00:31]} 42. b4 {[%clk 0:00:18]}  Bb3 {[%clk 0:00:29]} 43. Rc8 {[%clk 0:00:17]}  Nd5 {[%clk 0:00:27]} 44. Rxe7+ {[%clk 0:00:17]}  Kxe7 {[%clk 0:00:28]} 45. Rg8 {[%clk 0:00:17]}  Bc2 {[%clk 0:00:25]} 46. Rxg7+ {[%clk 0:00:16]}  Kf8 {[%clk 0:00:25]} 47. exf6 {[%clk 0:00:16]}  Be4+ {[%clk 0:00:25]} 48. Kg1 {[%clk 0:00:16]}  Nxf6 {[%clk 0:00:25]} 49. Rc7 {[%clk 0:00:16]}  Bxc6 {[%clk 0:00:24]} 50. Rxc6 {[%clk 0:00:16]}  Nd5 {[%clk 0:00:25]} 51. b5 {[%clk 0:00:16]}  Ke7 {[%clk 0:00:25]} 52. b6 {[%clk 0:00:15]}  Kd7 {[%clk 0:00:25]} 53. b7 {[%clk 0:00:15]}  Ne7 {[%clk 0:00:24]} 54. b8=Q {[%clk 0:00:15]}  Nxc6 {[%clk 0:00:25]} 55. Qh8 {[%clk 0:00:14]}  Nd4 {[%clk 0:00:24]} 56. Qxh6 {[%clk 0:00:14]}  Kd6 {[%clk 0:00:25]} 57. h4 {[%clk 0:00:13]}  Kd5 {[%clk 0:00:24]} 58. h5 {[%clk 0:00:14]}  Ke4 {[%clk 0:00:24]} 59. Qg6+ {[%clk 0:00:13]}  Ke3 {[%clk 0:00:24]} 60. h6 {[%clk 0:00:14]}  Nf3+ {[%clk 0:00:22]} 61. Kg2 {[%clk 0:00:14]}  Ne1+ {[%clk 0:00:22]} 62. Kh3 {[%clk 0:00:14]}  Nf3 {[%clk 0:00:22]} 63. h7 {[%clk 0:00:14]}  e5 {[%clk 0:00:22]} 64. fxe5 {[%clk 0:00:14]}  Nxe5 {[%clk 0:00:22]} 65. Qg5+ {[%clk 0:00:14]}  Ke4 {[%clk 0:00:22]} 66. Qxe5+ {[%clk 0:00:15]}  Kxe5 {[%clk 0:00:22]} 67. h8=Q+ {[%clk 0:00:16]}  Ke4 {[%clk 0:00:22]} 68. Qf6 {[%clk 0:00:16]}  Kd3 {[%clk 0:00:21]} 69. g4 {[%clk 0:00:16]} 1-0


[Site "https://www.chess.com"]

[Event "Titled Tuesday Blitz October 31 Early 2023"]
[White "Pavlidou, Ekaterini"]
[Black "Fernandez Hernandez, Gerardo"]
[WhiteFideId "4213262"]
[BlackFideId "2207400"]
[WhiteElo "2329"]
[BlackElo "2158"]
[Result "1-0"]
[Round "7"]
[TimeControl "180+1"]
[Date "2023.10.31"]
[WhiteClock "0:01:09"]
[BlackClock "0:00:00"]
[Board "150"]

1. d4 {[%clk 0:03:00]}  Nf6 {[%clk 0:02:58]} 2. c4 {[%clk 0:03:00]}  c5 {[%clk 0:02:59]} 3. d5 {[%clk 0:03:00]}  b5 {[%clk 0:02:57]} 4. cxb5 {[%clk 0:03:00]}  a6 {[%clk 0:02:57]} 5. bxa6 {[%clk 0:03:00]}  g6 {[%clk 0:02:57]} 6. Nc3 {[%clk 0:03:00]}  Bg7 {[%clk 0:02:57]} 7. e4 {[%clk 0:03:01]}  O-O {[%clk 0:02:56]} 8. g3 {[%clk 0:03:00]}  Qa5 {[%clk 0:02:48]} 9. Bg2 {[%clk 0:02:56]}  d6 {[%clk 0:02:46]} 10. Bd2 {[%clk 0:02:52]}  Bxa6 {[%clk 0:02:40]} 11. Nge2 {[%clk 0:02:49]}  Nbd7 {[%clk 0:02:35]} 12. O-O {[%clk 0:02:43]}  Rfb8 {[%clk 0:02:26]} 13. b3 {[%clk 0:02:39]}  Qc7 {[%clk 0:02:04]} 14. Rc1 {[%clk 0:02:27]}  Ne5 {[%clk 0:01:57]} 15. Bg5 {[%clk 0:01:46]}  Nd3 {[%clk 0:01:40]} 16. Rc2 {[%clk 0:01:45]}  h6 {[%clk 0:01:40]} 17. Be3 {[%clk 0:01:39]}  Ng4 {[%clk 0:01:22]} 18. Qd2 {[%clk 0:01:34]}  Nxe3 {[%clk 0:01:06]} 19. Qxe3 {[%clk 0:01:32]}  Nb4 {[%clk 0:00:33]} 20. Rcc1 {[%clk 0:01:28]}  Bxe2 {[%clk 0:00:17]} 21. Qxe2 {[%clk 0:01:27]}  Bxc3 {[%clk 0:00:15]} 22. Rxc3 {[%clk 0:01:27]}  Rxa2 {[%clk 0:00:16]} 23. Qe3 {[%clk 0:01:27]}  Kh7 {[%clk 0:00:13]} 24. e5 {[%clk 0:01:26]}  Rba8 {[%clk 0:00:06]} 25. e6 {[%clk 0:01:20]}  f6 {[%clk 0:00:05]} 26. h4 {[%clk 0:01:17]}  Rc2 {[%clk 0:00:02]} 27. Rxc2 {[%clk 0:01:11]}  Nxc2 {[%clk 0:00:03]} 28. Qd3 {[%clk 0:01:09]}  Nd4 {[%clk 0:00:00]} 29. h5 {[%clk 0:01:09]} 1-0


[Site "https://www.chess.com"]

[Event "Titled Tuesday Blitz October 31 Early 2023"]
[White "Dishman, Stephen"]
[Black "Bocangel Chavez, Marjoire J."]
[WhiteFideId "403024"]
[BlackFideId "3810500"]
[WhiteElo "2327"]
[BlackElo "1965"]
[Result "1-0"]
[Round "7"]
[TimeControl "180+1"]
[Date "2023.10.31"]
[WhiteClock "0:01:05"]
[BlackClock "0:00:01"]
[Board "151"]

1. c4 {[%clk 0:02:52]}  c5 {[%clk 0:02:58]} 2. g3 {[%clk 0:02:52]}  Nc6 {[%clk 0:02:57]} 3. Bg2 {[%clk 0:02:52]}  Nf6 {[%clk 0:02:56]} 4. Nc3 {[%clk 0:02:52]}  e6 {[%clk 0:02:55]} 5. Nf3 {[%clk 0:02:52]}  Be7 {[%clk 0:02:44]} 6. O-O {[%clk 0:02:51]}  O-O {[%clk 0:02:44]} 7. d4 {[%clk 0:02:51]}  cxd4 {[%clk 0:02:43]} 8. Nxd4 {[%clk 0:02:52]}  a6 {[%clk 0:02:43]} 9. e4 {[%clk 0:02:51]}  Qc7 {[%clk 0:02:39]} 10. Be3 {[%clk 0:02:46]}  d6 {[%clk 0:02:27]} 11. Rc1 {[%clk 0:02:45]}  Qb8 {[%clk 0:02:18]} 12. h3 {[%clk 0:02:44]}  Bd7 {[%clk 0:02:14]} 13. g4 {[%clk 0:02:42]}  Rc8 {[%clk 0:02:13]} 14. Qe2 {[%clk 0:02:40]}  Ne8 {[%clk 0:01:46]} 15. f4 {[%clk 0:02:19]}  Bf6 {[%clk 0:01:45]} 16. Nf3 {[%clk 0:02:15]}  Na5 {[%clk 0:01:39]} 17. g5 {[%clk 0:02:06]}  Bxc3 {[%clk 0:01:33]} 18. Rxc3 {[%clk 0:02:05]}  b5 {[%clk 0:01:33]} 19. c5 {[%clk 0:01:53]}  Nc4 {[%clk 0:01:30]} 20. b3 {[%clk 0:01:32]}  Nxe3 {[%clk 0:01:29]} 21. Qxe3 {[%clk 0:01:33]}  dxc5 {[%clk 0:01:23]} 22. Ne5 {[%clk 0:01:33]}  Qa7 {[%clk 0:00:45]} 23. Rd1 {[%clk 0:01:32]}  Rd8 {[%clk 0:00:35]} 24. Qxc5 {[%clk 0:01:29]}  Qxc5+ {[%clk 0:00:34]} 25. Rxc5 {[%clk 0:01:30]}  f6 {[%clk 0:00:33]} 26. Nxd7 {[%clk 0:01:20]}  e5 {[%clk 0:00:24]} 27. gxf6 {[%clk 0:01:16]}  Nxf6 {[%clk 0:00:21]} 28. Nxf6+ {[%clk 0:01:16]}  gxf6 {[%clk 0:00:22]} 29. Rxd8+ {[%clk 0:01:16]}  Rxd8 {[%clk 0:00:23]} 30. fxe5 {[%clk 0:01:16]}  Rd1+ {[%clk 0:00:22]} 31. Kh2 {[%clk 0:01:14]}  fxe5 {[%clk 0:00:22]} 32. Rxe5 {[%clk 0:01:13]}  Rd2 {[%clk 0:00:23]} 33. a4 {[%clk 0:01:12]}  Rb2 {[%clk 0:00:20]} 34. axb5 {[%clk 0:01:11]}  Rxb3 {[%clk 0:00:21]} 35. bxa6 {[%clk 0:01:10]}  Ra3 {[%clk 0:00:22]} 36. Re6 {[%clk 0:01:10]}  Kf7 {[%clk 0:00:22]} 37. Rb6 {[%clk 0:01:10]}  h5 {[%clk 0:00:01]} 38. e5 {[%clk 0:01:05]} 1-0


[Site "https://www.chess.com"]

[Event "Titled Tuesday Blitz October 31 Early 2023"]
[White "Viskelis, Darius"]
[Black "Silvestre, Christian"]
[WhiteFideId "12800830"]
[BlackFideId "30956269"]
[WhiteElo "2315"]
[BlackElo "2093"]
[Result "0-1"]
[Round "7"]
[TimeControl "180+1"]
[Date "2023.10.31"]
[WhiteClock "0:00:42"]
[BlackClock "0:01:16"]
[Board "152"]

1. e4 {[%clk 0:03:00]}  c5 {[%clk 0:02:54]} 2. Nf3 {[%clk 0:03:00]}  e6 {[%clk 0:02:55]} 3. c3 {[%clk 0:02:59]}  d5 {[%clk 0:02:53]} 4. e5 {[%clk 0:02:58]}  Nc6 {[%clk 0:02:53]} 5. d4 {[%clk 0:02:59]}  Bd7 {[%clk 0:02:52]} 6. Bd3 {[%clk 0:02:58]}  f6 {[%clk 0:02:51]} 7. exf6 {[%clk 0:02:57]}  Nxf6 {[%clk 0:02:51]} 8. O-O {[%clk 0:02:57]}  Bd6 {[%clk 0:02:51]} 9. Re1 {[%clk 0:02:56]}  O-O {[%clk 0:02:50]} 10. Bg5 {[%clk 0:02:54]}  Qb6 {[%clk 0:02:45]} 11. Qd2 {[%clk 0:02:52]}  cxd4 {[%clk 0:02:35]} 12. cxd4 {[%clk 0:02:48]}  Nb4 {[%clk 0:02:35]} 13. Bf1 {[%clk 0:02:45]}  Ne4 {[%clk 0:02:34]} 14. Qd1 {[%clk 0:02:30]}  Rxf3 {[%clk 0:01:59]} 15. Qxf3 {[%clk 0:02:20]}  Nxg5 {[%clk 0:01:57]} 16. Qd1 {[%clk 0:02:18]}  Nc6 {[%clk 0:01:42]} 17. Nc3 {[%clk 0:02:10]}  Qxd4 {[%clk 0:01:39]} 18. Qh5 {[%clk 0:01:57]}  Nf7 {[%clk 0:01:33]} 19. Rad1 {[%clk 0:01:53]}  Qf6 {[%clk 0:01:30]} 20. Ne4 {[%clk 0:01:48]}  dxe4 {[%clk 0:01:29]} 21. Rxd6 {[%clk 0:01:46]}  Nxd6 {[%clk 0:01:28]} 22. Rd1 {[%clk 0:01:39]}  e5 {[%clk 0:01:27]} 23. b4 {[%clk 0:01:03]}  Nd4 {[%clk 0:01:25]} 24. h3 {[%clk 0:00:54]}  Rf8 {[%clk 0:01:17]} 25. Rd2 {[%clk 0:00:52]}  Bb5 {[%clk 0:01:15]} 26. Bxb5 {[%clk 0:00:50]}  N6xb5 {[%clk 0:01:16]} 27. Qd1 {[%clk 0:00:49]}  Nc3 {[%clk 0:01:16]} 28. Qc1 {[%clk 0:00:42]}  Nce2+ {[%clk 0:01:16]} 0-1


[Site "https://www.chess.com"]

[Event "Titled Tuesday Blitz October 31 Early 2023"]
[White "Mirza, Diana"]
[Black "Schut, Han"]
[WhiteFideId "2503999"]
[BlackFideId "1005561"]
[WhiteElo "1950"]
[BlackElo "2284"]
[Result "0-1"]
[Round "7"]
[TimeControl "180+1"]
[Date "2023.10.31"]
[WhiteClock "0:00:41"]
[BlackClock "0:00:29"]
[Board "154"]

1. e4 {[%clk 0:02:54]}  c5 {[%clk 0:02:56]} 2. Nf3 {[%clk 0:02:50]}  d6 {[%clk 0:02:56]} 3. d4 {[%clk 0:02:51]}  cxd4 {[%clk 0:02:57]} 4. Nxd4 {[%clk 0:02:51]}  Nf6 {[%clk 0:02:57]} 5. Nc3 {[%clk 0:02:50]}  a6 {[%clk 0:02:57]} 6. Be3 {[%clk 0:02:48]}  e5 {[%clk 0:02:54]} 7. Nf5 {[%clk 0:02:48]}  d5 {[%clk 0:02:48]} 8. Bg5 {[%clk 0:02:37]}  d4 {[%clk 0:02:41]} 9. Nd5 {[%clk 0:02:35]}  Bxf5 {[%clk 0:02:30]} 10. Bxf6 {[%clk 0:02:22]}  gxf6 {[%clk 0:02:25]} 11. c4 {[%clk 0:01:57]}  Bxe4 {[%clk 0:02:13]} 12. Qa4+ {[%clk 0:01:53]}  Nc6 {[%clk 0:02:09]} 13. Be2 {[%clk 0:01:50]}  Bxd5 {[%clk 0:02:08]} 14. cxd5 {[%clk 0:01:51]}  Qxd5 {[%clk 0:02:04]} 15. Bf3 {[%clk 0:01:47]}  Qa5+ {[%clk 0:01:47]} 16. Qxa5 {[%clk 0:01:42]}  Nxa5 {[%clk 0:01:48]} 17. O-O {[%clk 0:01:42]}  Nc6 {[%clk 0:01:23]} 18. Rac1 {[%clk 0:01:38]}  Rc8 {[%clk 0:01:22]} 19. a3 {[%clk 0:01:38]}  Kd7 {[%clk 0:01:21]} 20. b4 {[%clk 0:01:38]}  Bd6 {[%clk 0:01:21]} 21. Be4 {[%clk 0:01:36]}  Ke6 {[%clk 0:01:16]} 22. f4 {[%clk 0:01:34]}  f5 {[%clk 0:01:15]} 23. fxe5 {[%clk 0:01:33]}  fxe4 {[%clk 0:01:09]} 24. exd6 {[%clk 0:01:33]}  f5 {[%clk 0:01:05]} 25. d7 {[%clk 0:01:31]}  Rcd8 {[%clk 0:01:02]} 26. Rc5 {[%clk 0:01:31]}  Rhf8 {[%clk 0:01:01]} 27. g4 {[%clk 0:01:26]}  f4 {[%clk 0:00:56]} 28. Rh5 {[%clk 0:01:20]}  Rxd7 {[%clk 0:00:52]} 29. Rh6+ {[%clk 0:01:19]}  Rf6 {[%clk 0:00:51]} 30. Rh5 {[%clk 0:01:19]}  e3 {[%clk 0:00:48]} 31. g5 {[%clk 0:01:16]}  Rg6 {[%clk 0:00:48]} 32. Rxf4 {[%clk 0:01:15]}  Rdg7 {[%clk 0:00:36]} 33. h4 {[%clk 0:01:06]}  h6 {[%clk 0:00:36]} 34. Kf1 {[%clk 0:01:01]}  hxg5 {[%clk 0:00:36]} 35. hxg5 {[%clk 0:01:01]}  Rxg5 {[%clk 0:00:37]} 36. Rh6+ {[%clk 0:01:00]}  R7g6 {[%clk 0:00:37]} 37. Rh8 {[%clk 0:01:00]}  Rf5 {[%clk 0:00:37]} 38. Re8+ {[%clk 0:00:52]}  Kd7 {[%clk 0:00:31]} 39. Rxf5 {[%clk 0:00:49]}  Kxe8 {[%clk 0:00:31]} 40. Ke2 {[%clk 0:00:47]}  Rg2+ {[%clk 0:00:30]} 41. Kd3 {[%clk 0:00:47]}  Rd2+ {[%clk 0:00:30]} 42. Ke4 {[%clk 0:00:41]}  e2 {[%clk 0:00:29]} 0-1


[Site "https://www.chess.com"]